[Event "*** SCC Grand Prix: Titled Tuesday Blitz"]
[Site "Chess.com"]
[Date "2020.06.02"]
[Round "8"]
[White "crossingthestreet"]
[Black "Zq1"]
[Result "0-1"]
[WhiteElo "2381"]
[BlackElo "2542"]
[TimeControl "180+1"]
[EndTime "11:36:54 PDT"]
[Termination "Zq1 won by checkmate"]

1. c4 {[%clk 0:03:00.9]} 1... e6 {[%clk 0:02:59.3]} 2. Nc3 {[%clk 0:03:00.6]}
2... d5 {[%clk 0:02:59.5]} 3. e3 {[%clk 0:03:00.3]} 3... Nf6 {[%clk 0:02:58.9]}
4. Nf3 {[%clk 0:03:00.5]} 4... Be7 {[%clk 0:02:58.9]} 5. b3 {[%clk 0:02:56.5]}
5... O-O {[%clk 0:02:54.6]} 6. Bb2 {[%clk 0:02:56]} 6... c5 {[%clk 0:02:54.5]}
7. cxd5 {[%clk 0:02:54.8]} 7... Nxd5 {[%clk 0:02:49.9]} 8. Qc2 {[%clk
0:02:52.2]} 8... Nb4 {[%clk 0:02:44.7]} 9. Qb1 {[%clk 0:02:51.4]} 9... Bf6
{[%clk 0:02:35.7]} 10. a3 {[%clk 0:02:41.8]} 10... N4c6 {[%clk 0:02:31.9]} 11.
h4 {[%clk 0:02:40]} 11... h5 {[%clk 0:02:13.1]} 12. Ng5 {[%clk 0:02:11.5]} 12...
g6 {[%clk 0:02:10.6]} 13. Nce4 {[%clk 0:02:10.1]} 13... Bxb2 {[%clk 0:02:03.8]}
14. Qxb2 {[%clk 0:02:09.4]} 14... Nd7 {[%clk 0:01:56.7]} 15. g4 {[%clk
0:02:01.5]} 15... Qe7 {[%clk 0:01:43]} 16. gxh5 {[%clk 0:02:00.1]} 16... f6
{[%clk 0:01:37.7]} 17. Nf3 {[%clk 0:01:35.6]} 17... gxh5 {[%clk 0:01:28]} 18.
Rg1+ {[%clk 0:01:34.3]} 18... Kf7 {[%clk 0:01:27.5]} 19. Be2 {[%clk 0:01:29.8]}
19... Rh8 {[%clk 0:01:25.1]} 20. O-O-O {[%clk 0:01:05.8]} 20... b6 {[%clk
0:01:24.5]} 21. Rg3 {[%clk 0:01:05.4]} 21... Bb7 {[%clk 0:01:23.2]} 22. Rdg1
{[%clk 0:01:05.1]} 22... Rag8 {[%clk 0:01:22.3]} 23. Rxg8 {[%clk 0:01:01.9]}
23... Rxg8 {[%clk 0:01:21.6]} 24. Nfg5+ {[%clk 0:00:38.1]} 24... fxg5 {[%clk
0:01:09.7]} 25. Bxh5+ {[%clk 0:00:38.3]} 25... Kf8 {[%clk 0:01:08.3]} 26. Nxg5
{[%clk 0:00:38.4]} 26... Nce5 {[%clk 0:00:46.3]} 27. Qc3 {[%clk 0:00:29.6]}
27... Bd5 {[%clk 0:00:37.8]} 28. f4 {[%clk 0:00:29.2]} 28... Ng6 {[%clk
0:00:33.2]} 29. Bxg6 {[%clk 0:00:19.8]} 29... Rxg6 {[%clk 0:00:32.2]} 30. h5
{[%clk 0:00:20.2]} 30... Rh6 {[%clk 0:00:25.9]} 31. e4 {[%clk 0:00:20.1]} 31...
Bc6 {[%clk 0:00:23.6]} 32. f5 {[%clk 0:00:15.8]} 32... exf5 {[%clk 0:00:20.6]}
33. exf5 {[%clk 0:00:15.5]} 33... Qf6 {[%clk 0:00:20.1]} 34. Ne6+ {[%clk
0:00:15.1]} 34... Ke7 {[%clk 0:00:19.3]} 35. Rg7+ {[%clk 0:00:15.2]} 35... Kd6
{[%clk 0:00:18.6]} 36. Qg3+ {[%clk 0:00:14.9]} 36... Qe5 {[%clk 0:00:18.5]} 37.
Qd3+ {[%clk 0:00:13.7]} 37... Qd5 {[%clk 0:00:16]} 38. Qg3+ {[%clk 0:00:12.8]}
38... Qe5 {[%clk 0:00:16]} 39. Qd3+ {[%clk 0:00:12.6]} 39... Qd5 {[%clk
0:00:16.2]} 40. Qe3 {[%clk 0:00:13.1]} 40... Rxh5 {[%clk 0:00:12.7]} 41. Qg3+
{[%clk 0:00:09.9]} 41... Qe5 {[%clk 0:00:12.7]} 42. Qd3+ {[%clk 0:00:10.3]}
42... Bd5 {[%clk 0:00:12.8]} 43. Qb5 {[%clk 0:00:08.2]} 43... Rh1+ {[%clk
0:00:11.7]} 44. Kc2 {[%clk 0:00:08.1]} 44... Be4+ {[%clk 0:00:11]} 45. d3 {[%clk
0:00:05.3]} 45... Qh2+ {[%clk 0:00:10.8]} 46. Kc3 {[%clk 0:00:02.8]} 46... Rc1#
{[%clk 0:00:10.6]} 0-1

[Event "*** SCC Grand Prix: Titled Tuesday Blitz"]
[Site "Chess.com"]
[Date "2020.06.02"]
[Round "8"]
[White "yamalchess"]
[Black "Jojo_1608"]
[Result "1-0"]
[WhiteElo "2463"]
[BlackElo "2181"]
[TimeControl "180+1"]
[EndTime "11:36:55 PDT"]
[Termination "yamalchess won on time"]

1. d4 {[%clk 0:03:00.9]} 1... Nf6 {[%clk 0:02:59.6]} 2. c4 {[%clk 0:02:59.9]}
2... g6 {[%clk 0:02:59.6]} 3. Nc3 {[%clk 0:02:58.9]} 3... Bg7 {[%clk 0:02:59.9]}
4. e4 {[%clk 0:02:58.2]} 4... d6 {[%clk 0:03:00.3]} 5. h3 {[%clk 0:02:58.4]}
5... O-O {[%clk 0:03:00.8]} 6. Bg5 {[%clk 0:02:58.7]} 6... c5 {[%clk 0:03:01]}
7. d5 {[%clk 0:02:58.7]} 7... e6 {[%clk 0:02:54.4]} 8. Bd3 {[%clk 0:02:58.6]}
8... exd5 {[%clk 0:02:51.1]} 9. exd5 {[%clk 0:02:58.6]} 9... Na6 {[%clk
0:02:40.3]} 10. Nf3 {[%clk 0:02:57.4]} 10... Nc7 {[%clk 0:02:31]} 11. a4 {[%clk
0:02:54.9]} 11... h6 {[%clk 0:02:30.2]} 12. Be3 {[%clk 0:02:52.5]} 12... a6
{[%clk 0:02:27.3]} 13. Qd2 {[%clk 0:02:51.5]} 13... Kh7 {[%clk 0:02:26.3]} 14.
O-O {[%clk 0:02:51.4]} 14... Rb8 {[%clk 0:02:25.7]} 15. Rfe1 {[%clk 0:02:49]}
15... Bd7 {[%clk 0:02:19.5]} 16. a5 {[%clk 0:02:46.2]} 16... b5 {[%clk
0:02:14.1]} 17. axb6 {[%clk 0:02:46]} 17... Rxb6 {[%clk 0:02:13.3]} 18. Bf4
{[%clk 0:02:46.3]} 18... Qb8 {[%clk 0:02:06.6]} 19. Ra2 {[%clk 0:02:43]} 19...
Re8 {[%clk 0:02:04.3]} 20. Rxe8 {[%clk 0:02:39.8]} 20... Ncxe8 {[%clk
0:01:53.6]} 21. g4 {[%clk 0:02:34.6]} 21... Kg8 {[%clk 0:01:32.6]} 22. Kg2
{[%clk 0:02:16.5]} 22... g5 {[%clk 0:01:24.9]} 23. Bg3 {[%clk 0:02:13.8]} 23...
Kf8 {[%clk 0:01:18.1]} 24. Qe2 {[%clk 0:02:01.6]} 24... Ng8 {[%clk 0:01:12.3]}
25. Nd1 {[%clk 0:01:44.4]} 25... Ne7 {[%clk 0:01:07.8]} 26. b3 {[%clk
0:01:16.8]} 26... Rxb3 {[%clk 0:01:00.9]} 27. Rxa6 {[%clk 0:01:15.6]} 27... Rb6
{[%clk 0:00:59.8]} 28. Rxb6 {[%clk 0:01:14.6]} 28... Qxb6 {[%clk 0:00:58.9]} 29.
Qa2 {[%clk 0:01:13.2]} 29... Qb4 {[%clk 0:00:38]} 30. Qa8 {[%clk 0:01:09.5]}
30... Qb3 {[%clk 0:00:37.6]} 31. Ne3 {[%clk 0:00:56.1]} 31... Qxd3 {[%clk
0:00:33.7]} 32. Bxd6 {[%clk 0:00:55.7]} 32... Qe4 {[%clk 0:00:30.6]} 33. Bxc5
{[%clk 0:00:53.4]} 33... f5 {[%clk 0:00:21.7]} 34. gxf5 {[%clk 0:00:36.3]} 34...
Bxf5 {[%clk 0:00:19.2]} 35. Nxf5 {[%clk 0:00:32.8]} 35... Qxf5 {[%clk
0:00:18.6]} 36. Qd8 {[%clk 0:00:32.7]} 36... Bf6 {[%clk 0:00:16.4]} 37. d6
{[%clk 0:00:29.4]} 37... Nc6 {[%clk 0:00:14]} 38. d7+ {[%clk 0:00:22.1]} 38...
Qxc5 {[%clk 0:00:06.1]} 39. dxe8=Q+ {[%clk 0:00:20.6]} 39... Kg7 {[%clk
0:00:06]} 40. Qdd7+ {[%clk 0:00:20.5]} 40... Ne7 {[%clk 0:00:05.1]} 41. Qe6
{[%clk 0:00:19.8]} 1-0

[Event "*** SCC Grand Prix: Titled Tuesday Blitz"]
[Site "Chess.com"]
[Date "2020.06.02"]
[Round "8"]
[White "maciek_92"]
[Black "ENEASZ"]
[Result "1-0"]
[WhiteElo "2783"]
[BlackElo "2488"]
[TimeControl "180+1"]
[EndTime "11:36:56 PDT"]
[Termination "maciek_92 won on time"]

1. e4 {[%clk 0:03:00.9]} 1... d6 {[%clk 0:02:57.4]} 2. d4 {[%clk 0:02:58.3]}
2... Nf6 {[%clk 0:02:57.4]} 3. Nc3 {[%clk 0:02:58.9]} 3... e5 {[%clk 0:02:57.4]}
4. Nf3 {[%clk 0:02:59.1]} 4... Nbd7 {[%clk 0:02:56.5]} 5. Bc4 {[%clk 0:02:58.6]}
5... Be7 {[%clk 0:02:56.4]} 6. O-O {[%clk 0:02:58.5]} 6... O-O {[%clk
0:02:56.5]} 7. Re1 {[%clk 0:02:58]} 7... c6 {[%clk 0:02:55.4]} 8. a4 {[%clk
0:02:58.6]} 8... b6 {[%clk 0:02:55.7]} 9. h3 {[%clk 0:02:56.2]} 9... a6 {[%clk
0:02:55.7]} 10. Be3 {[%clk 0:02:47.4]} 10... Rb8 {[%clk 0:02:52.7]} 11. d5
{[%clk 0:02:42.6]} 11... c5 {[%clk 0:02:43.9]} 12. Nd2 {[%clk 0:02:39.4]} 12...
g6 {[%clk 0:02:42.9]} 13. Qe2 {[%clk 0:02:36.5]} 13... Ra8 {[%clk 0:02:41.9]}
14. g4 {[%clk 0:02:24.3]} 14... Ne8 {[%clk 0:02:29.8]} 15. Bh6 {[%clk
0:02:08.9]} 15... Ng7 {[%clk 0:02:29.5]} 16. Qe3 {[%clk 0:02:09.4]} 16... Rb8
{[%clk 0:02:20.2]} 17. Kh1 {[%clk 0:01:56.9]} 17... Nf6 {[%clk 0:02:19.4]} 18.
Rg1 {[%clk 0:01:53.4]} 18... Kh8 {[%clk 0:02:19.1]} 19. Qe2 {[%clk 0:01:40.5]}
19... Ra8 {[%clk 0:02:17.2]} 20. Be3 {[%clk 0:01:24.7]} 20... Ng8 {[%clk
0:02:14.1]} 21. f4 {[%clk 0:01:01.9]} 21... exf4 {[%clk 0:02:11.7]} 22. Bxf4
{[%clk 0:01:02.8]} 22... Nf6 {[%clk 0:01:33.5]} 23. Qh2 {[%clk 0:00:56.3]} 23...
Kg8 {[%clk 0:01:14.8]} 24. Rae1 {[%clk 0:00:53.7]} 24... Nge8 {[%clk 0:01:10.8]}
25. Nf3 {[%clk 0:00:45]} 25... Nd7 {[%clk 0:01:10.4]} 26. g5 {[%clk 0:00:35.8]}
26... Ra7 {[%clk 0:00:48.8]} 27. h4 {[%clk 0:00:30.2]} 27... Ng7 {[%clk
0:00:33.9]} 28. Bxd6 {[%clk 0:00:29.1]} 28... Nh5 {[%clk 0:00:34.1]} 29. Bxe7
{[%clk 0:00:25.1]} 29... Qxe7 {[%clk 0:00:35]} 30. e5 {[%clk 0:00:25.8]} 30...
b5 {[%clk 0:00:31.9]} 31. axb5 {[%clk 0:00:24.1]} 31... Nb6 {[%clk 0:00:32.1]}
32. Bd3 {[%clk 0:00:17.4]} 32... c4 {[%clk 0:00:30.9]} 33. Be4 {[%clk
0:00:16.4]} 33... Qb4 {[%clk 0:00:27.3]} 34. Qf2 {[%clk 0:00:12.4]} 34... Rb7
{[%clk 0:00:11.5]} 35. bxa6 {[%clk 0:00:12.4]} 35... Ra7 {[%clk 0:00:11.9]} 36.
Ne2 {[%clk 0:00:07.1]} 36... Bxa6 {[%clk 0:00:10.4]} 37. c3 {[%clk 0:00:06]}
37... Qe7 {[%clk 0:00:05]} 38. Qxb6 {[%clk 0:00:04.4]} 1-0

[Event "*** SCC Grand Prix: Titled Tuesday Blitz"]
[Site "Chess.com"]
[Date "2020.06.02"]
[Round "8"]
[White "louis198"]
[Black "Volodar_Murzin"]
[Result "0-1"]
[WhiteElo "2467"]
[BlackElo "2698"]
[TimeControl "180+1"]
[EndTime "11:36:56 PDT"]
[Termination "Volodar_Murzin won by checkmate"]

1. d4 {[%clk 0:03:00.5]} 1... Nf6 {[%clk 0:02:57.1]} 2. Bf4 {[%clk 0:02:59.2]}
2... g6 {[%clk 0:02:57.2]} 3. e3 {[%clk 0:02:59.4]} 3... Bg7 {[%clk 0:02:57.6]}
4. h3 {[%clk 0:02:59.9]} 4... O-O {[%clk 0:02:58.3]} 5. Nf3 {[%clk 0:03:00.5]}
5... d6 {[%clk 0:02:59.1]} 6. Bc4 {[%clk 0:03:01.1]} 6... Nbd7 {[%clk
0:02:59.9]} 7. O-O {[%clk 0:03:01.3]} 7... b6 {[%clk 0:03:00.5]} 8. a4 {[%clk
0:03:01.3]} 8... Bb7 {[%clk 0:03:01.2]} 9. c3 {[%clk 0:03:01.5]} 9... Ne4 {[%clk
0:02:54.8]} 10. Nbd2 {[%clk 0:03:01]} 10... Qb8 {[%clk 0:02:45.7]} 11. a5 {[%clk
0:02:51.3]} 11... a6 {[%clk 0:02:39.2]} 12. Nxe4 {[%clk 0:02:42.8]} 12... Bxe4
{[%clk 0:02:38.5]} 13. Nd2 {[%clk 0:02:43.4]} 13... Bb7 {[%clk 0:02:38.1]} 14.
Ra3 {[%clk 0:02:09.8]} 14... Qc8 {[%clk 0:02:15]} 15. Ba2 {[%clk 0:01:55.6]}
15... Nf6 {[%clk 0:02:06.6]} 16. c4 {[%clk 0:01:47.5]} 16... Re8 {[%clk
0:01:57]} 17. Qb3 {[%clk 0:01:30.5]} 17... Rb8 {[%clk 0:01:30.4]} 18. Qc3 {[%clk
0:01:01.5]} 18... e5 {[%clk 0:01:03.5]} 19. dxe5 {[%clk 0:00:55.2]} 19... dxe5
{[%clk 0:01:04.4]} 20. Bh2 {[%clk 0:00:46.8]} 20... Qf5 {[%clk 0:00:58]} 21. c5
{[%clk 0:00:45]} 21... bxc5 {[%clk 0:00:36.2]} 22. Qxc5 {[%clk 0:00:44.9]} 22...
Rbd8 {[%clk 0:00:32.1]} 23. Qc1 {[%clk 0:00:26.6]} 23... Rd7 {[%clk 0:00:22.5]}
24. Rc3 {[%clk 0:00:26.6]} 24... Ree7 {[%clk 0:00:13.2]} 25. Bb1 {[%clk
0:00:22.3]} 25... Qg5 {[%clk 0:00:12]} 26. f3 {[%clk 0:00:20.7]} 26... h5 {[%clk
0:00:11.5]} 27. Ne4 {[%clk 0:00:17]} 27... Nxe4 {[%clk 0:00:11.5]} 28. fxe4
{[%clk 0:00:17.7]} 28... Bh6 {[%clk 0:00:11.2]} 29. Kh1 {[%clk 0:00:17.1]} 29...
Qh4 {[%clk 0:00:10.6]} 30. Rc4 {[%clk 0:00:15]} 30... Kh7 {[%clk 0:00:09.8]} 31.
Qc3 {[%clk 0:00:13.5]} 31... Bg7 {[%clk 0:00:08.4]} 32. b4 {[%clk 0:00:11.7]}
32... Qg5 {[%clk 0:00:08]} 33. Rc5 {[%clk 0:00:11.6]} 33... Qh4 {[%clk 0:00:07]}
34. Bxe5 {[%clk 0:00:08.2]} 34... Rxe5 {[%clk 0:00:05.8]} 35. Rxe5 {[%clk
0:00:09.1]} 35... Re7 {[%clk 0:00:03.8]} 36. Rxh5+ {[%clk 0:00:06.4]} 36... Qxh5
{[%clk 0:00:03.4]} 37. Qe1 {[%clk 0:00:05.5]} 37... Bxe4 {[%clk 0:00:03.4]} 38.
Ba2 {[%clk 0:00:05.5]} 38... Qxh3+ {[%clk 0:00:03.2]} 39. Kg1 {[%clk 0:00:04.5]}
39... Qxg2# {[%clk 0:00:04.1]} 0-1

[Event "*** SCC Grand Prix: Titled Tuesday Blitz"]
[Site "Chess.com"]
[Date "2020.06.02"]
[Round "8"]
[White "Perecke"]
[Black "dolynachess"]
[Result "0-1"]
[WhiteElo "2177"]
[BlackElo "2345"]
[TimeControl "180+1"]
[EndTime "11:36:56 PDT"]
[Termination "dolynachess won by resignation"]

1. e4 {[%clk 0:03:00.9]} 1... c5 {[%clk 0:02:59.7]} 2. Nf3 {[%clk 0:02:59]} 2...
d6 {[%clk 0:03:00]} 3. d4 {[%clk 0:02:59.5]} 3... cxd4 {[%clk 0:03:00.9]} 4.
Nxd4 {[%clk 0:03:00.2]} 4... Nf6 {[%clk 0:03:00.3]} 5. Nc3 {[%clk 0:03:00.8]}
5... a6 {[%clk 0:03:00.7]} 6. h3 {[%clk 0:03:01.4]} 6... e5 {[%clk 0:02:59.8]}
7. Nde2 {[%clk 0:03:00.6]} 7... h5 {[%clk 0:02:59]} 8. g3 {[%clk 0:03:00.5]}
8... Be6 {[%clk 0:02:58.6]} 9. Be3 {[%clk 0:02:59.6]} 9... Nbd7 {[%clk
0:02:58.6]} 10. Bg2 {[%clk 0:02:59.6]} 10... Be7 {[%clk 0:02:56.3]} 11. O-O
{[%clk 0:02:59.8]} 11... Qc7 {[%clk 0:02:56.5]} 12. f4 {[%clk 0:02:59.4]} 12...
Rc8 {[%clk 0:02:42.3]} 13. Qd2 {[%clk 0:02:52.9]} 13... b5 {[%clk 0:02:36.4]}
14. b3 {[%clk 0:02:31.5]} 14... b4 {[%clk 0:02:30.6]} 15. Na4 {[%clk 0:02:31.4]}
15... g6 {[%clk 0:01:39.9]} 16. f5 {[%clk 0:02:21.3]} 16... gxf5 {[%clk
0:01:07.6]} 17. exf5 {[%clk 0:02:22.2]} 17... Qxc2 {[%clk 0:01:07.8]} 18. fxe6
{[%clk 0:02:20.4]} 18... fxe6 {[%clk 0:01:08.5]} 19. Rac1 {[%clk 0:02:17.5]}
19... Qxd2 {[%clk 0:01:03.7]} 20. Rxc8+ {[%clk 0:02:16.9]} 20... Kf7 {[%clk
0:00:59.5]} 21. Bxd2 {[%clk 0:02:06.7]} 21... Rxc8 {[%clk 0:00:59.9]} 22. Rc1
{[%clk 0:02:04.4]} 22... Rxc1+ {[%clk 0:00:52.7]} 23. Bxc1 {[%clk 0:02:05.3]}
23... d5 {[%clk 0:00:49.5]} 24. Bd2 {[%clk 0:02:00.8]} 24... a5 {[%clk
0:00:46.2]} 25. Nb2 {[%clk 0:01:55.9]} 25... e4 {[%clk 0:00:32]} 26. Nd4 {[%clk
0:01:46]} 26... Bc5 {[%clk 0:00:25.5]} 27. Be3 {[%clk 0:01:45.9]} 27... e5
{[%clk 0:00:22.5]} 28. Nc2 {[%clk 0:01:33.6]} 28... d4 {[%clk 0:00:22.3]} 29.
Bf2 {[%clk 0:01:33.7]} 29... e3 {[%clk 0:00:20.6]} 30. Be1 {[%clk 0:01:32.8]}
30... e4 {[%clk 0:00:20.6]} 31. Nxd4 {[%clk 0:01:17]} 31... Bxd4 {[%clk
0:00:21.5]} 32. Nc4 {[%clk 0:01:17.9]} 32... Nc5 {[%clk 0:00:18.4]} 33. Nxa5
{[%clk 0:01:12.1]} 33... e2+ {[%clk 0:00:16.1]} 34. Kh2 {[%clk 0:01:07.7]} 34...
Nd3 {[%clk 0:00:16.5]} 35. Nc6 {[%clk 0:00:31.6]} 35... Be3 {[%clk 0:00:05.6]}
36. Nd8+ {[%clk 0:00:05.4]} 36... Ke8 {[%clk 0:00:04.6]} 37. Ne6 {[%clk
0:00:05.4]} 37... Nxe1 {[%clk 0:00:03.6]} 38. Ng7+ {[%clk 0:00:05.8]} 38... Kf7
{[%clk 0:00:03.3]} 39. Nf5 {[%clk 0:00:06.5]} 39... Nxg2 {[%clk 0:00:03.9]} 40.
Nd6+ {[%clk 0:00:07.4]} 40... Kg8 {[%clk 0:00:03.4]} 41. Nxe4 {[%clk 0:00:07.5]}
41... e1=Q {[%clk 0:00:04.3]} 42. Nxf6+ {[%clk 0:00:08.4]} 42... Kf7 {[%clk
0:00:03.6]} 0-1

[Event "*** SCC Grand Prix: Titled Tuesday Blitz"]
[Site "Chess.com"]
[Date "2020.06.02"]
[Round "8"]
[White "Chess_Boxer123"]
[Black "MPGM"]
[Result "1-0"]
[WhiteElo "2712"]
[BlackElo "2539"]
[TimeControl "180+1"]
[EndTime "11:36:58 PDT"]
[Termination "Chess_Boxer123 won by resignation"]

1. e4 {[%clk 0:02:53.5]} 1... c6 {[%clk 0:02:56.6]} 2. Nf3 {[%clk 0:02:48.9]}
2... d5 {[%clk 0:02:56.9]} 3. Nc3 {[%clk 0:02:48.6]} 3... Bg4 {[%clk 0:02:56.4]}
4. h3 {[%clk 0:02:48.2]} 4... Bh5 {[%clk 0:02:55.5]} 5. Be2 {[%clk 0:02:29.1]}
5... dxe4 {[%clk 0:02:44.7]} 6. Nxe4 {[%clk 0:02:28.6]} 6... Nf6 {[%clk
0:02:45.3]} 7. Ng3 {[%clk 0:02:27]} 7... Bg6 {[%clk 0:02:45.5]} 8. d3 {[%clk
0:02:26.7]} 8... e6 {[%clk 0:02:45]} 9. O-O {[%clk 0:02:24.3]} 9... Be7 {[%clk
0:02:42.4]} 10. b3 {[%clk 0:02:22]} 10... O-O {[%clk 0:02:41.1]} 11. Bb2 {[%clk
0:02:22]} 11... a5 {[%clk 0:02:41.5]} 12. a4 {[%clk 0:02:21.8]} 12... Na6 {[%clk
0:02:38.9]} 13. Ne5 {[%clk 0:02:21.3]} 13... Nd7 {[%clk 0:02:36.5]} 14. Nxg6
{[%clk 0:02:15.7]} 14... hxg6 {[%clk 0:02:35.6]} 15. Ne4 {[%clk 0:02:12.4]}
15... Nb4 {[%clk 0:02:27.5]} 16. Bf3 {[%clk 0:02:06.3]} 16... Nc5 {[%clk
0:02:24.3]} 17. Qe2 {[%clk 0:02:02.2]} 17... Nxe4 {[%clk 0:02:19.9]} 18. Bxe4
{[%clk 0:02:00.6]} 18... Bf6 {[%clk 0:02:19.9]} 19. d4 {[%clk 0:01:53.8]} 19...
Qb6 {[%clk 0:02:02.3]} 20. g3 {[%clk 0:01:41.3]} 20... Rad8 {[%clk 0:01:56.6]}
21. Rad1 {[%clk 0:01:36.9]} 21... Rd7 {[%clk 0:01:50]} 22. Kg2 {[%clk
0:01:35.8]} 22... Rfd8 {[%clk 0:01:49.9]} 23. h4 {[%clk 0:01:33.3]} 23... Na2
{[%clk 0:01:32.9]} 24. h5 {[%clk 0:01:29.4]} 24... Bxd4 {[%clk 0:01:29.2]} 25.
Rxd4 {[%clk 0:01:18.9]} 25... Rxd4 {[%clk 0:01:30.1]} 26. hxg6 {[%clk
0:01:18.8]} 26... f5 {[%clk 0:01:15]} 27. Bxf5 {[%clk 0:01:13.4]} 27... c5
{[%clk 0:00:18.2]} 28. Bxe6+ {[%clk 0:01:05.2]} 28... Kf8 {[%clk 0:00:17.7]} 29.
Qf3+ {[%clk 0:01:05.7]} 29... Ke7 {[%clk 0:00:17.7]} 30. Re1 {[%clk 0:01:06]}
30... Rf8 {[%clk 0:00:14.8]} 31. Bf7+ {[%clk 0:01:01.3]} 31... Kd7 {[%clk
0:00:13.8]} 32. Bxd4 {[%clk 0:00:52.3]} 32... cxd4 {[%clk 0:00:14.7]} 33. Qf5+
{[%clk 0:00:49.6]} 33... Kc7 {[%clk 0:00:14.3]} 34. Qf4+ {[%clk 0:00:50]} 34...
Qd6 {[%clk 0:00:06.2]} 35. Re7+ {[%clk 0:00:49.3]} 35... Kc6 {[%clk 0:00:06.9]}
36. Qf3+ {[%clk 0:00:45.4]} 36... Kc5 {[%clk 0:00:06.8]} 37. Rxb7 {[%clk
0:00:45.4]} 37... Nc3 {[%clk 0:00:05.9]} 38. Qf5+ {[%clk 0:00:26.3]} 38... Kc6
{[%clk 0:00:04.8]} 39. Ra7 {[%clk 0:00:26]} 39... Kb6 {[%clk 0:00:03.4]} 40.
Qxa5+ {[%clk 0:00:25.3]} 40... Kc6 {[%clk 0:00:03.5]} 41. Ra6+ {[%clk
0:00:25.1]} 1-0

[Event "*** SCC Grand Prix: Titled Tuesday Blitz"]
[Site "Chess.com"]
[Date "2020.06.02"]
[Round "8"]
[White "GM_LOADING"]
[Black "Jungle_Jaguar"]
[Result "1-0"]
[WhiteElo "2465"]
[BlackElo "2592"]
[TimeControl "180+1"]
[EndTime "11:36:58 PDT"]
[Termination "GM_LOADING won by checkmate"]

1. e4 {[%clk 0:03:00.9]} 1... e5 {[%clk 0:02:59.8]} 2. Nf3 {[%clk 0:02:53.7]}
2... Nc6 {[%clk 0:03:00.2]} 3. Bc4 {[%clk 0:02:54.2]} 3... Bc5 {[%clk
0:02:58.3]} 4. O-O {[%clk 0:02:54.2]} 4... Nf6 {[%clk 0:02:58]} 5. d3 {[%clk
0:02:54.5]} 5... d6 {[%clk 0:02:57.4]} 6. c3 {[%clk 0:02:54.1]} 6... a6 {[%clk
0:02:56.9]} 7. a4 {[%clk 0:02:54.1]} 7... Ba7 {[%clk 0:02:39.3]} 8. Re1 {[%clk
0:02:51.8]} 8... h6 {[%clk 0:02:38.9]} 9. b4 {[%clk 0:02:49.5]} 9... g5 {[%clk
0:02:37.6]} 10. Be3 {[%clk 0:02:49.1]} 10... g4 {[%clk 0:02:28.6]} 11. Nfd2
{[%clk 0:02:48.7]} 11... Nh5 {[%clk 0:02:28.7]} 12. Nf1 {[%clk 0:02:43.1]} 12...
Nf4 {[%clk 0:02:25]} 13. Bxf4 {[%clk 0:02:40.8]} 13... exf4 {[%clk 0:02:25.2]}
14. d4 {[%clk 0:02:41.4]} 14... Qg5 {[%clk 0:02:16.9]} 15. Nbd2 {[%clk
0:02:31.4]} 15... O-O {[%clk 0:02:09.6]} 16. Nb3 {[%clk 0:02:04.9]} 16... Bd7
{[%clk 0:02:04.3]} 17. Qd2 {[%clk 0:01:54.7]} 17... Rae8 {[%clk 0:01:29.4]} 18.
g3 {[%clk 0:01:50.4]} 18... fxg3 {[%clk 0:01:21.5]} 19. Qxg5+ {[%clk 0:01:48.3]}
19... hxg5 {[%clk 0:01:22.4]} 20. hxg3 {[%clk 0:01:43.3]} 20... Kg7 {[%clk
0:01:21.4]} 21. Bd3 {[%clk 0:01:22.9]} 21... Ne7 {[%clk 0:01:10.7]} 22. Ne3
{[%clk 0:01:20.8]} 22... Rh8 {[%clk 0:01:01.6]} 23. Be2 {[%clk 0:01:09.5]} 23...
f5 {[%clk 0:00:34]} 24. exf5 {[%clk 0:01:03.9]} 24... Bc6 {[%clk 0:00:32.8]} 25.
Ng2 {[%clk 0:00:46.9]} 25... Nxf5 {[%clk 0:00:20.1]} 26. Bxg4 {[%clk 0:00:37]}
26... Nh6 {[%clk 0:00:19.9]} 27. Be2 {[%clk 0:00:29.4]} 27... Bd5 {[%clk
0:00:17.7]} 28. Nd2 {[%clk 0:00:28.7]} 28... Re7 {[%clk 0:00:16.6]} 29. Bc4
{[%clk 0:00:28.4]} 29... Rxe1+ {[%clk 0:00:14.3]} 30. Rxe1 {[%clk 0:00:29.3]}
30... Bxc4 {[%clk 0:00:14.7]} 31. Nxc4 {[%clk 0:00:29.4]} 31... Kf6 {[%clk
0:00:15.3]} 32. Nge3 {[%clk 0:00:25.6]} 32... c6 {[%clk 0:00:14]} 33. Nxd6
{[%clk 0:00:25.3]} 33... Bb8 {[%clk 0:00:13.6]} 34. Nxb7 {[%clk 0:00:24.4]}
34... Bc7 {[%clk 0:00:13.2]} 35. Nc5 {[%clk 0:00:24.3]} 35... g4 {[%clk
0:00:13.9]} 36. Nxa6 {[%clk 0:00:22.6]} 36... Bd6 {[%clk 0:00:13.7]} 37. Nc5
{[%clk 0:00:22.4]} 37... Kg5 {[%clk 0:00:13.5]} 38. Ne4+ {[%clk 0:00:22]} 38...
Kh5 {[%clk 0:00:14]} 39. Nxd6 {[%clk 0:00:22]} 39... Kg5 {[%clk 0:00:14.1]} 40.
Ne4+ {[%clk 0:00:21.5]} 40... Kg6 {[%clk 0:00:14.3]} 41. a5 {[%clk 0:00:21.6]}
41... Nf7 {[%clk 0:00:14.8]} 42. Nc4 {[%clk 0:00:21.7]} 42... Ng5 {[%clk
0:00:15.1]} 43. Ne5+ {[%clk 0:00:21.6]} 43... Kf5 {[%clk 0:00:15.2]} 44. Nxg5
{[%clk 0:00:22.5]} 44... Kxg5 {[%clk 0:00:15.6]} 45. a6 {[%clk 0:00:23]} 45...
Kf5 {[%clk 0:00:16.2]} 46. a7 {[%clk 0:00:23.3]} 46... Ra8 {[%clk 0:00:17.1]}
47. Nxc6 {[%clk 0:00:22.1]} 47... Kf6 {[%clk 0:00:17.6]} 48. b5 {[%clk
0:00:22.5]} 48... Kf5 {[%clk 0:00:17.9]} 49. b6 {[%clk 0:00:23]} 49... Kf6
{[%clk 0:00:18.5]} 50. b7 {[%clk 0:00:23.5]} 50... Rxa7 {[%clk 0:00:19]} 51.
Nxa7 {[%clk 0:00:24.4]} 51... Kf5 {[%clk 0:00:19.2]} 52. b8=Q {[%clk 0:00:24.8]}
52... Kg5 {[%clk 0:00:20.1]} 53. Qe5+ {[%clk 0:00:24.5]} 53... Kg6 {[%clk
0:00:21]} 54. Qd6+ {[%clk 0:00:25]} 54... Kh5 {[%clk 0:00:21.4]} 55. Re5# {[%clk
0:00:25.5]} 1-0